bitfinex/quotes_BTCUSD_20241011
["timestamp","ask_amount","ask_price","bid_price","bid_amount"]
[1728640326019,0.076517,61046.0,61045.0,0.17614884]
[1728640326704,0.2569887,61046.0,61045.0,0.00933584]
[1728640326908,0.333227,61046.0,61045.0,0.00933584]
[1728640327128,0.0765,61045.0,61035.0,0.327677]
[1728640327347,0.163821,61042.0,61041.0,0.24774756]
[1728640327594,0.327637,61044.0,61036.0,0.00643925]
[1728640327828,0.327637,61044.0,61034.0,0.329316]
[1728640327829,0.3553899,61043.0,61041.0,0.00643806]
[1728640328047,0.163821,61042.0,61036.0,0.163836]
[1728640328264,0.0774,61039.0,61034.0,0.001632]
[1728640328476,0.0774,61039.0,61035.0,0.32768]
[1728640328618,0.0774,61039.0,61037.0,0.163833]
[1728640330572,0.0784,61039.0,61038.0,0.163832]
[1728640330788,0.001,61039.0,61038.0,0.42381636]
[1728640331230,0.001,61039.0,61038.0,0.29382418]
[1728640331480,0.081317,61046.0,61045.0,0.163813]
[1728640331703,0.081317,61046.0,61045.0,0.29380518]
[1728640332133,0.09665144,61046.0,61045.0,0.29380518]
[1728640332348,0.09665144,61046.0,61045.0,0.163813]
[1728640332558,0.09665144,61046.0,61045.0,0.29380518]
[1728640333715,0.09765144,61046.0,61045.0,0.29380518]
[1728640334193,0.09765144,61046.0,61045.0,0.163813]
[1728640334401,0.09765261,61046.0,61045.0,0.29380518]
[1728640337015,0.01715261,61046.0,61045.0,0.29380518]
[1728640340758,0.01715261,61046.0,61045.0,0.30027294]
[1728640341426,0.01715261,61046.0,61045.0,0.13645994]
[1728640341622,0.01715261,61046.0,61045.0,0.30027294]
[1728640341879,0.01715261,61046.0,61045.0,0.13645994]
[1728640342334,0.01715261,61046.0,61045.0,0.00646776]
[1728640342802,0.01715261,61046.0,61045.0,0.36499103]
[1728640342803,0.001817,61046.0,61045.0,0.36499103]
[1728640343063,0.001817,61046.0,61045.0,0.37117999]
[1728640343508,0.001817,61046.0,61045.0,0.29999414]
[1728640343736,0.000817,61046.0,61045.0,0.30327003]
[1728640345177,0.000817,61046.0,61045.0,0.31127003]
[1728640345392,0.000817,61046.0,61045.0,0.30727003]
[1728640345669,0.000817,61046.0,61045.0,0.30327003]
[1728640345850,0.000817,61046.0,61045.0,0.30727003]
[1728640349857,0.000817,61046.0,61045.0,0.60818592]
[1728640350064,0.000817,61046.0,61045.0,0.60491003]
[1728640351449,0.000817,61046.0,61045.0,0.48340456]
[1728640353335,0.000817,61046.0,61045.0,0.48348514]
[1728640353468,0.000817,61046.0,61045.0,0.48348284]
[1728640353675,0.000817,61046.0,61045.0,0.35349066]
[1728640353896,0.000817,61046.0,61045.0,0.45074978]
[1728640354090,0.01615271,61046.0,61045.0,0.24695012]
[1728640354314,0.000817,61046.0,61045.0,0.24695012]
[1728640354565,0.0161524,61046.0,61045.0,0.24695012]
[1728640355036,0.0161524,61046.0,61045.0,0.24495012]
[1728640355241,0.0171524,61046.0,61045.0,0.24495012]
[1728640355445,0.0171524,61046.0,61045.0,0.24295012]
[1728640355654,0.0999524,61046.0,61045.0,0.24295012]
[1728640357711,0.084617,61046.0,61045.0,0.24295012]
[1728640357928,0.0999566,61046.0,61045.0,0.24295012]
[1728640358139,0.10995226,61046.0,61045.0,0.07913712]
[1728640358410,0.0171566,61046.0,61045.0,0.24295012]
[1728640359731,0.0171566,61046.0,61045.0,0.07913712]
[1728640359959,0.3553666,61046.0,61045.0,0.05483088]
[1728640360176,0.3553666,61046.0,61045.0,0.00618896]
[1728640360825,0.1915566,61046.0,61042.0,0.24774756]
[1728640361063,0.175217,61046.0,61045.0,0.00592802]
[1728640361299,0.175217,61046.0,61045.0,0.001]
[1728640361300,0.1915701,61046.0,61045.0,0.001]
[1728640361531,0.19156825,61046.0,61045.0,0.00692802]
[1728640361772,0.19056825,61046.0,61041.0,0.21247157]
[1728640361996,0.175217,61046.0,61045.0,0.00591391]
[1728640362220,0.175217,61046.0,61041.0,0.04864957]
[1728640362221,0.19056816,61046.0,61041.0,0.04864957]
[1728640362441,0.178217,61046.0,61045.0,0.00691391]
[1728640362666,0.178217,61046.0,61042.0,0.001]
[1728640362667,0.19156717,61046.0,61042.0,0.001]
[1728640362877,0.01535017,61045.0,61042.0,0.001]
[1728640363084,0.01535017,61044.0,61042.0,0.001]
[1728640363300,0.01535017,61043.0,61042.0,0.001]
[1728640363995,0.01535017,61043.0,61041.0,0.001]
[1728640364125,0.01535017,61042.0,61041.0,0.001]
[1728640364331,0.01535017,61042.0,61041.0,0.002]
[1728640364556,0.01535017,61042.0,61041.0,0.001]
[1728640364759,0.01535017,61042.0,61040.0,0.163826]
[1728640365090,0.01535017,61041.0,61040.0,0.21246973]
[1728640365287,0.01535017,61041.0,61040.0,0.163826]
[1728640366275,0.01535017,61041.0,61039.0,0.05027773]
[1728640366423,0.003,61042.0,61040.0,0.163826]
[1728640366632,0.01834423,61041.0,61040.0,0.163826]
[1728640367116,0.01834423,61041.0,61039.0,0.05028004]
[1728640367317,0.01534423,61040.0,61039.0,0.21410804]
[1728640367520,0.01534372,61040.0,61039.0,0.21410804]
[1728640367731,0.01534372,61040.0,61039.0,0.21410618]
[1728640369173,0.01734372,61040.0,61039.0,0.21410618]
[1728640370494,0.01934372,61040.0,61039.0,0.21410618]
[1728640370705,0.01934372,61040.0,61039.0,0.22002918]
[1728640371161,0.01934372,61040.0,61039.0,0.171385]
[1728640372021,0.01934372,61040.0,61039.0,0.22002918]
[1728640372945,0.01934372,61040.0,61039.0,0.171385]
[1728640372946,0.01734372,61040.0,61039.0,0.171385]
[1728640373169,0.01734372,61040.0,61039.0,0.24435127]
[1728640373393,0.01534372,61040.0,61039.0,0.63907347]
[1728640373622,0.000817,61046.0,61045.0,0.163813]
[1728640373881,0.000817,61046.0,61045.0,0.29380518]
[1728640374111,0.000817,61046.0,61045.0,0.29973324]
[1728640374112,0.0161541,61046.0,61045.0,0.29973324]
[1728640374992,0.0221541,61046.0,61045.0,0.29973324]
[1728640375658,0.0191541,61046.0,61045.0,0.3483578]
[1728640375887,0.0211541,61046.0,61045.0,0.3483578]
[1728640376365,0.0191541,61046.0,61045.0,0.3483578]
[1728640376588,0.0181541,61046.0,61045.0,0.29973324]
[1728640376801,0.002817,61046.0,61045.0,0.29973324]
[1728640377233,0.004817,61046.0,61045.0,0.55210297]
[1728640377455,0.02015681,61046.0,61045.0,0.55210297]
[1728640377691,0.01815681,61046.0,61045.0,0.55210297]
[1728640377898,0.002817,61046.0,61045.0,0.47918325]
[1728640378117,0.004817,61046.0,61045.0,0.47918325]
[1728640378339,0.02015777,61046.0,61045.0,0.47918325]
[1728640378572,0.004817,61046.0,61045.0,0.47918325]
[1728640378805,0.000917,61056.0,61055.0,0.163786]
[1728640379039,0.000917,61056.0,61055.0,0.89864665]
[1728640379265,0.000917,61056.0,61055.0,0.64983735]
[1728640379940,0.000917,61056.0,61055.0,0.57627034]
[1728640380409,0.000917,61056.0,61055.0,0.55183228]
[1728640380631,0.000917,61056.0,61055.0,0.55983228]
[1728640381086,0.000917,61056.0,61055.0,0.55183228]
[1728640381559,0.000917,61056.0,61055.0,0.56183228]
[1728640381792,0.000917,61056.0,61055.0,0.30368734]
[1728640382257,0.000917,61056.0,61055.0,0.30568734]
[1728640382728,0.000917,61056.0,61055.0,0.30168734]
[1728640382915,0.000917,61056.0,61055.0,0.30368734]
[1728640383597,0.000917,61056.0,61055.0,0.35223548]
[1728640384966,0.000917,61056.0,61055.0,0.35023548]
[1728640385175,0.000917,61056.0,61055.0,0.35323548]
[1728640385391,0.000917,61056.0,61055.0,0.30468734]
[1728640385815,0.000917,61056.0,61055.0,0.30268734]
[1728640386038,0.000917,61056.0,61055.0,0.30568734]
[1728640388959,0.000917,61056.0,61055.0,0.30896264]
[1728640390024,0.000917,61056.0,61055.0,0.38776258]
[1728640390240,0.000917,61056.0,61055.0,0.76857418]
[1728640391077,0.000917,61056.0,61055.0,0.89912779]
[1728640391513,0.000917,61056.0,61055.0,0.89911471]
[1728640391722,0.000917,61056.0,61055.0,0.97187887]
[1728640392587,0.000917,61056.0,61055.0,1.07342401]
[1728640393250,0.000917,61056.0,61055.0,1.19471157]
[1728640393469,0.000917,61056.0,61055.0,1.09642401]
[1728640393674,0.000917,61056.0,61055.0,1.2176316]
[1728640393885,0.000917,61056.0,61055.0,1.2146273]
[1728640394119,0.000917,61056.0,61055.0,1.21463044]
[1728640394332,0.000917,61056.0,61055.0,1.22563044]
[1728640394543,0.000917,61056.0,61055.0,1.09342401]
[1728640394755,0.000917,61056.0,61055.0,1.10726157]
[1728640395415,0.0002,61059.0,61058.0,0.005]
[1728640395641,0.0002,61059.0,61058.0,0.64076841]
[1728640395848,0.0002,61059.0,61058.0,0.82552858]
[1728640396070,0.0002,61059.0,61058.0,0.84975823]
[1728640396295,0.0002,61059.0,61058.0,0.75283965]
[1728640396785,0.0002,61059.0,61058.0,0.82551085]
[1728640397016,0.001017,61059.0,61058.0,0.82551085]
[1728640397700,0.001017,61059.0,61058.0,0.64658462]
[1728640397919,0.001017,61059.0,61058.0,0.65558462]
[1728640398145,0.001017,61059.0,61058.0,0.66058462]
[1728640398370,0.001017,61059.0,61058.0,0.60191342]
[1728640399267,0.001017,61059.0,61058.0,0.65034107]
[1728640399746,0.001017,61059.0,61058.0,0.87266098]
[1728640399969,0.001017,61059.0,61058.0,1.22861691]
[1728640400201,0.0002,61079.0,61066.0,0.0901]
[1728640400417,0.24794756,61079.0,61078.0,0.163725]
[1728640400646,0.0002,61079.0,61078.0,0.32894134]
[1728640400872,0.0002,61079.0,61078.0,0.3347448]
[1728640401091,0.0002,61079.0,61078.0,0.25636067]
[1728640401301,0.0002,61079.0,61078.0,0.41722812]
[1728640401520,0.0002,61079.0,61078.0,0.6090541]
[1728640402178,0.0002,61079.0,61078.0,0.6150541]
[1728640402391,0.0002,61079.0,61078.0,0.6440541]
[1728640402828,0.0002,61079.0,61078.0,0.6380541]
[1728640403099,0.0002,61079.0,61078.0,0.17552846]
[1728640403841,0.0002,61079.0,61078.0,0.16952846]
[1728640404076,0.0002,61079.0,61078.0,0.18252846]
[1728640404362,0.0002,61079.0,61078.0,0.19652846]
[1728640404607,0.0002,61079.0,61078.0,0.18580249]
[1728640404840,0.0002,61079.0,61078.0,0.18752846]
[1728640405084,0.0002,61079.0,61078.0,0.17452846]
[1728640405303,0.0002,61079.0,61078.0,0.18552846]
[1728640405521,0.01227492,61087.0,61086.0,0.163703]
[1728640405956,0.01227492,61087.0,61086.0,0.16948176]
[1728640406173,0.01227492,61087.0,61086.0,0.29947394]
[1728640407508,0.01227492,61087.0,61086.0,0.46878324]
[1728640407951,0.01227492,61087.0,61086.0,0.29947394]
[1728640408370,0.01227492,61087.0,61086.0,0.30047394]
[1728640408559,0.01227492,61087.0,61086.0,0.30447394]
[1728640409526,0.01227492,61087.0,61086.0,0.30347394]
[1728640409743,0.01227492,61087.0,61086.0,0.47278324]
[1728640409976,0.01227492,61087.0,61086.0,0.57278324]
[1728640409977,0.01309192,61087.0,61086.0,0.57278324]
[1728640410213,0.01588857,61100.0,61087.0,0.3892]
[1728640410428,0.01588857,61100.0,61087.0,0.5585093]
[1728640410638,0.01588857,61100.0,61087.0,0.56424567]
[1728640410855,0.01588857,61100.0,61090.0,0.168692]
[1728640411071,0.01588857,61100.0,61098.0,0.39366318]
[1728640411311,0.01588857,61100.0,61098.0,0.56297248]
[1728640411557,0.01588857,61100.0,61098.0,0.56869155]
[1728640411802,0.01588857,61100.0,61098.0,0.66799155]
[1728640412042,0.01588857,61100.0,61098.0,0.67499155]
[1728640412278,0.01588857,61100.0,61098.0,0.66799155]
[1728640412493,0.01588857,61100.0,61098.0,0.17239007]
[1728640412710,0.01588857,61100.0,61098.0,0.17539007]
[1728640413614,0.01588857,61100.0,61098.0,0.17234958]
[1728640414502,0.01588857,61100.0,61098.0,0.17034958]
[1728640414768,0.01588857,61100.0,61098.0,0.17134958]
[1728640415213,0.01588857,61100.0,61098.0,0.17462261]
[1728640415651,0.01588857,61100.0,61098.0,0.17362261]
[1728640415892,0.01588857,61100.0,61098.0,0.17262261]
[1728640416325,0.01588857,61100.0,61098.0,0.17462261]
[1728640416980,0.01588857,61100.0,61098.0,0.17662261]
[1728640417420,0.01588857,61100.0,61098.0,0.17662262]
[1728640417628,0.01588857,61100.0,61098.0,0.34265888]
[1728640418256,0.01588857,61100.0,61099.0,0.005]
[1728640418481,0.01588857,61100.0,61099.0,0.44125012]
[1728640418720,0.01588857,61100.0,61099.0,0.44341631]
[1728640419391,0.35394756,61117.0,61116.0,0.163623]
[1728640419392,0.01,61117.0,61116.0,0.163623]
[1728640419625,0.01,61117.0,61116.0,0.56292448]
[1728640419862,0.01,61117.0,61116.0,0.56835945]
[1728640420341,0.0755,61140.0,61126.0,0.12999218]
[1728640420556,0.24774756,61134.0,61130.0,0.12999218]
[1728640420780,0.0755,61140.0,61132.0,0.32716]
[1728640421030,0.0755,61140.0,61126.0,0.327188]
[1728640421031,0.0755,61140.0,61131.0,0.33259136]
[1728640421261,0.0755,61140.0,61134.0,0.163572]
[1728640421262,0.23906,61140.0,61134.0,0.163572]
[1728640421501,0.23906,61140.0,61134.0,0.327149]
[1728640421502,0.0755,61140.0,61134.0,0.327149]
[1728640421730,0.173665,61138.0,61135.0,0.00542541]
[1728640421958,0.0101,61138.0,61132.0,0.24774756]
[1728640422172,0.0101,61138.0,61136.0,0.00542517]
[1728640422471,0.0101,61138.0,61132.0,0.24774756]
[1728640422711,0.173665,61138.0,61137.0,0.00542493]
[1728640422946,0.0101,61138.0,61132.0,0.24774756]
[1728640423173,0.0101,61138.0,61134.0,0.163573]
[1728640423405,0.0101,61138.0,61133.0,0.00542589]
[1728640423624,0.0101,61138.0,61135.0,0.00542541]
[1728640423859,0.0101,61138.0,61136.0,0.163568]
[1728640424088,0.0101,61138.0,61136.0,0.00542517]
[1728640424510,0.0101,61138.0,61134.0,0.163574]
[1728640424724,0.0101,61138.0,61133.0,0.328151]
[1728640424957,0.0101,61138.0,61137.0,0.00538795]
[1728640425181,0.0101,61138.0,61136.0,0.164569]
[1728640425392,0.0101,61138.0,61137.0,0.00538795]
[1728640425881,0.0101,61138.0,61136.0,0.001]
[1728640426372,0.0101,61138.0,61137.0,0.00538795]
[1728640426602,0.0515212,61138.0,61136.0,0.002]
[1728640426814,0.0101,61138.0,61137.0,0.00538795]
[1728640427037,0.0101,61138.0,61137.0,0.00638795]
[1728640427248,0.0101,61138.0,61137.0,0.001]
[1728640427457,0.0101,61138.0,61137.0,0.00738795]
[1728640427668,0.173664,61138.0,61137.0,0.002]
[1728640427879,0.0101,61138.0,61137.0,0.00738795]
[1728640428094,0.173664,61138.0,61137.0,0.002]
[1728640428310,0.0101,61138.0,61137.0,0.00738795]
[1728640428547,0.0101,61138.0,61137.0,0.002]
[1728640429004,0.0101,61138.0,61137.0,0.00738795]
[1728640429217,0.0101,61138.0,61137.0,0.002]
[1728640429440,0.0101,61138.0,61137.0,0.00738795]
[1728640429666,0.0101,61138.0,61137.0,0.165567]
[1728640429884,0.0101,61138.0,61137.0,0.00738795]
[1728640430615,0.0101,61138.0,61137.0,0.17095495]
[1728640431981,0.001,61143.0,61142.0,0.163553]
[1728640432425,0.001,61143.0,61142.0,0.16893976]
[1728640433067,0.001,61143.0,61142.0,0.00538676]
[1728640433276,0.001,61143.0,61142.0,0.16993976]
[1728640433483,0.001,61143.0,61142.0,0.17093976]
[1728640433693,0.001,61143.0,61142.0,0.00738676]
[1728640435493,0.001,61143.0,61142.0,0.17093976]
[1728640436353,0.001,61143.0,61142.0,0.00738676]
[1728640436833,0.001,61143.0,61142.0,0.00538676]
[1728640437080,0.001,61143.0,61142.0,0.00638676]
[1728640437310,0.001,61143.0,61142.0,0.00738676]
[1728640437311,0.46578737,61143.0,61142.0,0.00738676]
[1728640437527,0.56375248,61143.0,61142.0,0.001]
[1728640437742,0.56375248,61143.0,61142.0,0.002]
[1728640437743,0.64035248,61143.0,61142.0,0.002]
[1728640438003,0.64035248,61143.0,61142.0,0.001]
[1728640438516,0.32712,61140.0,61133.0,0.24774756]
[1728640438756,0.163562,61139.0,61134.0,0.163573]
[1728640438989,0.163564,61138.0,61133.0,0.24774756]
[1728640439222,0.163563,61139.0,61133.0,0.24774756]
[1728640439456,0.163563,61139.0,61133.0,0.41132456]
[1728640439692,0.163563,61139.0,61134.0,0.163572]
[1728640439925,0.163563,61139.0,61133.0,0.41232456]
[1728640440154,0.327108,61142.0,61133.0,0.57489956]
[1728640440417,0.3338603,61143.0,61138.0,0.163563]
[1728640440680,0.3338613,61143.0,61138.0,0.163562]
[1728640440945,0.1703093,61143.0,61135.0,0.327142]
[1728640441196,0.1703093,61143.0,61133.0,0.24874756]
[1728640441197,0.1703093,61143.0,61134.0,0.001]
[1728640441450,0.327123,61140.0,61135.0,0.24774756]
[1728640441713,0.163569,61136.0,61135.0,0.24774756]
[1728640441954,0.163572,61135.0,61134.0,0.001]
[1728640442190,0.3328813,61135.0,61134.0,0.001]
[1728640442443,0.3328813,61135.0,61130.0,0.163585]
[1728640442444,0.1693093,61135.0,61129.0,0.24774756]
[1728640442677,0.0807,61136.0,61135.0,0.001]
[1728640442915,0.244256,61142.0,61136.0,0.163567]
[1728640443182,0.57193817,61141.0,61134.0,0.001]
[1728640443449,0.163568,61137.0,61134.0,0.001]
[1728640443719,0.163572,61135.0,61134.0,0.001]
[1728640443966,0.16358,61132.0,61131.0,0.001632]
[1728640444217,0.63243941,61132.0,61131.0,0.001632]
[1728640444466,0.83840619,61132.0,61131.0,0.001632]
[1728640444718,1.20780397,61132.0,61131.0,0.001632]
[1728640445169,1.20973886,61132.0,61131.0,0.001632]
[1728640445386,1.07588961,61132.0,61131.0,0.001632]
[1728640445637,0.163608,61122.0,61118.0,0.24774756]
[1728640445859,0.07984224,61121.0,61118.0,0.24774756]
[1728640446081,0.21987819,61120.0,61119.0,0.00561279]
[1728640446305,0.34356896,61120.0,61119.0,0.00561279]
[1728640446525,0.21988345,61120.0,61119.0,0.00561279]
[1728640446739,0.21988345,61120.0,61116.0,0.163623]
[1728640446963,0.0798475,61119.0,61110.0,0.327278]
[1728640447177,0.14003595,61120.0,61110.0,0.327278]
[1728640447178,0.0798475,61118.0,61115.0,0.490876]
[1728640447398,0.0798475,61117.0,61116.0,0.163622]
[1728640447617,0.05527735,61117.0,61116.0,0.163622]
[1728640448327,0.05527735,61117.0,61115.0,0.163625]
[1728640448545,0.1788,61120.0,61113.0,0.327261]
[1728640448546,0.05527735,61116.0,61113.0,0.327261]
[1728640448766,0.05527735,61115.0,61113.0,0.16363]
[1728640448984,0.3611093,61120.0,61114.0,0.163628]
[1728640449210,0.3611093,61120.0,61112.0,0.327265]
[1728640449211,0.001,61117.0,61112.0,0.327265]
[1728640449427,0.05516741,61116.0,61114.0,0.163627]
[1728640449662,0.002,61117.0,61113.0,0.163629]
[1728640449884,0.03065328,61115.0,61109.0,0.57502556]
[1728640450099,0.03065328,61115.0,61113.0,0.001]
[1728640450345,0.03065328,61115.0,61109.0,0.24774756]
[1728640450569,0.06903363,61116.0,61111.0,0.163636]
[1728640450790,0.05807609,61115.0,61111.0,0.327272]
[1728640451050,0.12999218,61117.0,61108.0,0.327288]
[1728640451273,0.45723518,61117.0,61109.0,0.24774756]
[1728640451513,0.12999218,61117.0,61112.0,0.163632]
[1728640451735,0.12999218,61117.0,61109.0,0.24774756]
[1728640451736,0.11425725,61116.0,61110.0,0.327273]
[1728640451956,0.11425725,61116.0,61109.0,0.24774756]
[1728640451957,0.014,61115.0,61113.0,0.163631]
[1728640452160,0.014,61115.0,61111.0,0.327271]
[1728640452370,0.11325725,61116.0,61112.0,0.163632]
[1728640452802,0.33361218,61117.0,61112.0,0.164632]
[1728640453027,0.14399218,61117.0,61113.0,0.16363]
[1728640453257,0.3481093,61120.0,61116.0,0.24774756]
[1728640453486,0.014,61115.0,61114.0,0.163628]
[1728640454789,0.246013,61120.0,61116.0,0.16362]
[1728640455003,0.014,61117.0,61115.0,0.163624]
[1728640455226,0.014,61117.0,61109.0,0.12999218]
[1728640455227,0.027,61117.0,61113.0,0.163629]
[1728640455474,0.027,61117.0,61115.0,0.163624]
[1728640455735,0.163616,61119.0,61115.0,0.163624]
[1728640455954,0.027,61115.0,61114.0,0.001]
[1728640456173,0.014,61115.0,61105.0,0.12999218]
[1728640456391,0.32723,61119.0,61114.0,0.00565036]
[1728640456612,0.176621,61117.0,61113.0,0.16463]
[1728640456838,0.013,61117.0,61115.0,0.00565008]
[1728640457057,0.027,61117.0,61114.0,0.16927736]
[1728640457274,0.190621,61117.0,61113.0,0.001]
[1728640457490,0.027,61117.0,61116.0,0.24774756]
[1728640457699,0.027,61117.0,61113.0,0.001]
[1728640457909,0.190621,61117.0,61113.0,0.001]
[1728640458356,0.163621,61117.0,61113.0,0.165262]
[1728640458612,0.013,61115.0,61114.0,0.001]
[1728640458852,0.013,61115.0,61113.0,0.165262]
[1728640459088,0.163628,61114.0,61113.0,0.002632]
[1728640459321,0.013,61115.0,61113.0,0.002632]
[1728640459788,0.013,61115.0,61113.0,0.16626]
[1728640459912,0.014,61115.0,61113.0,0.001632]
[1728640460109,0.027,61115.0,61114.0,0.163628]
[1728640460324,0.013,61115.0,61113.0,0.002632]
[1728640460524,0.013,61115.0,61114.0,0.163628]
[1728640460733,0.013,61115.0,61113.0,0.002632]
[1728640460734,0.341228,61114.0,61113.0,0.002632]
[1728640461008,0.5105373,61114.0,61113.0,0.002632]
[1728640461240,0.9678293,61114.0,61113.0,0.002632]
[1728640461461,0.9908293,61114.0,61113.0,0.001632]
[1728640462304,1.00576419,61114.0,61113.0,0.002632]
[1728640462512,1.17620689,61114.0,61113.0,0.001632]
[1728640462920,1.17620689,61114.0,61113.0,0.002632]
[1728640462921,0.6185373,61114.0,61113.0,0.002632]
[1728640463130,0.6325373,61114.0,61113.0,0.002632]
[1728640470422,0.5325373,61114.0,61113.0,0.002632]
[1728640473626,0.027,61114.0,61113.0,0.166263]
[1728640473852,0.027,61114.0,61113.0,0.002632]
[1728640474085,0.190628,61114.0,61113.0,0.00808021]
[1728640474298,0.3599373,61114.0,61113.0,0.002632]
[1728640474506,0.3599373,61114.0,61113.0,0.00808021]
[1728640474929,0.3599373,61114.0,61113.0,0.002632]
[1728640475180,0.3599373,61114.0,61113.0,0.00808021]
[1728640475386,0.3599373,61114.0,61113.0,0.002632]
[1728640478881,0.3599373,61114.0,61113.0,0.00807517]
[1728640479097,0.49460333,61114.0,61113.0,0.002632]
[1728640479722,0.49460333,61114.0,61113.0,0.00807517]
[1728640479928,0.49460333,61114.0,61113.0,0.002632]
[1728640480558,0.3599373,61114.0,61113.0,0.002632]
[1728640482698,0.53107219,61114.0,61113.0,0.002632]
[1728640482919,0.5291373,61114.0,61113.0,0.002632]
[1728640483774,0.5341373,61114.0,61113.0,0.002632]
[1728640484428,0.63607219,61114.0,61113.0,0.002632]
[1728640484649,0.80551489,61114.0,61113.0,0.002632]
[1728640485267,0.80358,61114.0,61113.0,0.002632]
[1728640485484,0.6341373,61114.0,61113.0,0.002632]
[1728640489044,1.0230123,61114.0,61113.0,0.002632]
[1728640491103,1.3506203,61114.0,61113.0,0.002632]
[1728640491957,0.6341373,61114.0,61113.0,0.002632]
[1728640492592,0.5415373,61114.0,61113.0,0.002632]
[1728640492803,0.5365373,61114.0,61113.0,0.002632]
[1728640493477,0.4599373,61114.0,61113.0,0.002632]
[1728640496538,0.2963093,61114.0,61113.0,0.002632]
[1728640496986,0.127,61114.0,61113.0,0.002632]
[1728640497212,0.127,61114.0,61113.0,0.00808561]
[1728640497427,0.127,61114.0,61113.0,0.002632]
[1728640497880,0.127,61114.0,61113.0,0.00808561]
[1728640498094,0.127,61114.0,61113.0,0.002632]
[1728640498305,0.127,61114.0,61113.0,0.00808561]
[1728640499344,0.127,61114.0,61113.0,0.17171661]
[1728640500180,0.127,61114.0,61113.0,0.00808561]
[1728640501215,0.16688026,61114.0,61113.0,0.17171661]
[1728640503483,0.33050826,61114.0,61113.0,0.00808561]
[1728640503890,0.16688026,61114.0,61113.0,0.00808561]
[1728640504815,0.33050826,61114.0,61113.0,0.00808561]
[1728640505062,0.16688026,61114.0,61113.0,0.00808561]
[1728640505567,0.33050826,61114.0,61113.0,0.00808561]
[1728640505796,0.16688026,61114.0,61113.0,0.00808561]
[1728640506016,0.16688026,61114.0,61113.0,0.002632]
[1728640506468,0.16688026,61114.0,61113.0,0.00808561]
[1728640508399,0.77531689,61114.0,61113.0,0.00808561]
[1728640508865,0.77531689,61114.0,61113.0,0.002632]
[1728640510536,0.77530462,61114.0,61113.0,0.002632]
[1728640510756,0.67680529,61114.0,61113.0,0.002632]
[1728640511266,0.80679747,61114.0,61113.0,0.002632]
[1728640511521,3.30002647,61114.0,61113.0,0.002632]
[1728640511761,3.37170147,61114.0,61113.0,0.002632]
[1728640512016,3.99470147,61114.0,61113.0,0.002632]
[1728640512253,4.16414417,61114.0,61113.0,0.002632]
[1728640513210,4.12427618,61114.0,61113.0,0.002632]
[1728640513507,0.005,61100.0,61093.0,0.04860762]
[1728640513761,0.005,61100.0,61092.0,0.32065899]
[1728640513762,0.163684,61093.0,61092.0,0.24774756]
[1728640514005,2.07126742,61093.0,61092.0,0.24774756]
[1728640514243,0.163698,61088.0,61087.0,0.001632]
[1728640514471,0.20356542,61088.0,61087.0,0.001632]
[1728640514685,1.88919642,61088.0,61087.0,0.001632]
[1728640515343,2.19984357,61088.0,61087.0,0.001632]
[1728640515978,2.98813657,61088.0,61087.0,0.001632]
[1728640516191,3.09007146,61088.0,61087.0,0.001632]
[1728640516408,3.07287746,61088.0,61087.0,0.001632]
[1728640517071,3.07287746,61088.0,61087.0,0.007632]
[1728640517283,3.57287746,61088.0,61087.0,0.007632]
[1728640517936,3.59587746,61088.0,61087.0,0.007632]
[1728640519040,3.69267746,61088.0,61087.0,0.007632]
[1728640523237,3.65281004,61088.0,61087.0,0.007632]
[1728640523461,3.12787515,61088.0,61087.0,0.007632]
[1728640523689,1.24036626,61088.0,61087.0,0.007632]
[1728640524112,1.07256426,61088.0,61087.0,0.007632]
[1728640524327,0.89135026,61088.0,61087.0,0.007632]
[1728640524540,0.80179626,61088.0,61087.0,0.007632]
[1728640524752,0.92266526,61088.0,61087.0,0.007632]
[1728640525103,0.21805126,61088.0,61087.0,0.007632]
[1728640525108,0.38174926,61088.0,61087.0,0.007632]
[1728640525341,0.21805126,61088.0,61087.0,0.007632]
[1728640525582,0.21805126,61088.0,61087.0,0.01287495]
[1728640525790,0.32220149,61088.0,61087.0,0.01287495]
[1728640526007,0.48589949,61088.0,61087.0,0.01287495]
[1728640526250,0.21805126,61088.0,61087.0,0.01287495]
[1728640527338,0.21805126,61088.0,61087.0,0.17657495]
[1728640527591,0.21805126,61088.0,61087.0,0.01287495]
[1728640528449,0.38174926,61088.0,61087.0,0.01287495]
[1728640528669,0.21805126,61088.0,61087.0,0.01287495]
[1728640529137,0.27905126,61088.0,61087.0,0.01287495]
[1728640529358,0.44274926,61088.0,61087.0,0.01287495]
[1728640530696,0.3940073,61088.0,61087.0,0.01287495]
[1728640532695,0.38075673,61088.0,61087.0,0.01287495]
[1728640533798,0.38075673,61088.0,61087.0,0.007632]
[1728640534063,0.38075673,61088.0,61087.0,0.01283599]
[1728640534272,0.38075673,61088.0,61087.0,0.01283557]
[1728640535170,0.38075673,61088.0,61087.0,0.00763158]
[1728640535419,0.38075673,61088.0,61087.0,0.01283557]
[1728640536566,0.40516783,61088.0,61087.0,0.01283557]
[1728640536993,0.0854111,61088.0,61087.0,0.14282775]
[1728640537215,0.0854111,61088.0,61087.0,0.38772775]
[1728640537216,0.061,61088.0,61087.0,0.38772775]
[1728640537704,0.075,61088.0,61087.0,0.38772775]
[1728640537942,0.061,61088.0,61087.0,0.51771993]
[1728640539249,0.062,61088.0,61087.0,0.51771993]
[1728640539894,0.075,61088.0,61087.0,0.51771993]
[1728640540112,0.061,61088.0,61087.0,0.51771993]
[1728640540357,0.062,61088.0,61087.0,0.51871993]
[1728640541230,0.063,61088.0,61087.0,0.68802923]
[1728640541696,0.063,61088.0,61087.0,0.78422923]
[1728640543473,0.063,61088.0,61087.0,0.78222923]
[1728640544224,0.063,61088.0,61087.0,0.78422923]
[1728640545395,0.063,61088.0,61087.0,0.78222923]
[1728640546339,0.063,61088.0,61087.0,0.78722923]
[1728640546574,0.063,61088.0,61087.0,0.88722923]
[1728640547037,0.063818,61088.0,61087.0,0.88722923]
[1728640547257,0.063818,61088.0,61087.0,0.91022923]
[1728640547720,0.002818,61088.0,61087.0,0.91022923]
[1728640552565,0.24774756,61096.0,61095.0,0.46807118]